[Event "Early-Titled-Tuesday-Blitz-September-26-2023"]
[Site "Chess.com"]
[Date "2023.09.26"]
[Round "5"]
[White "Korchmar_Vasiliy"]
[Black "LangesNasenhaar"]
[Result "1-0"]
[WhiteElo "2698"]
[BlackElo "2487"]
[TimeControl "180+1"]
[EndTime "8:58:44 PDT"]
[Termination "Korchmar_Vasiliy won by resignation"]

1. e4 {[%clk 0:03:00.9]} 1... g6 {[%clk 0:02:59.8]} 2. d4 {[%clk 0:03:00.8]}
2... Bg7 {[%clk 0:03:00.3]} 3. Nf3 {[%clk 0:03:01.2]} 3... c6 {[%clk 0:03:00.8]}
4. Bd3 {[%clk 0:03:01.4]} 4... d5 {[%clk 0:03:00.7]} 5. e5 {[%clk 0:03:01.9]}
5... Bg4 {[%clk 0:03:00]} 6. Nbd2 {[%clk 0:03:01.5]} 6... c5 {[%clk 0:02:56.1]}
7. dxc5 {[%clk 0:02:58.6]} 7... Nc6 {[%clk 0:02:55.9]} 8. O-O {[%clk 0:02:52.7]}
8... Nxe5 {[%clk 0:02:50.5]} 9. Bb5+ {[%clk 0:02:41.7]} 9... Nc6 {[%clk
0:02:47.9]} 10. h3 {[%clk 0:02:36.1]} 10... Bd7 {[%clk 0:02:33.2]} 11. c4 {[%clk
0:02:32.3]} 11... d4 {[%clk 0:02:29.7]} 12. Nb3 {[%clk 0:02:27.1]} 12... e5
{[%clk 0:02:13.1]} 13. Re1 {[%clk 0:02:27.2]} 13... Nge7 {[%clk 0:02:10.6]} 14.
Bxc6 {[%clk 0:02:19.3]} 14... Nxc6 {[%clk 0:02:10.7]} 15. Nbxd4 {[%clk
0:02:18.5]} 15... Nxd4 {[%clk 0:02:08.9]} 16. Qxd4 {[%clk 0:02:12.9]} 16... O-O
{[%clk 0:01:57.5]} 17. Nxe5 {[%clk 0:02:12.7]} 17... Be6 {[%clk 0:01:50.6]} 18.
Qd6 {[%clk 0:01:57]} 18... Qh4 {[%clk 0:01:32.6]} 19. c6 {[%clk 0:00:39.4]}
19... Rad8 {[%clk 0:01:23.7]} 20. Qc5 {[%clk 0:00:38.8]} 20... bxc6 {[%clk
0:00:46.6]} 21. Nxc6 {[%clk 0:00:38.7]} 21... Rd7 {[%clk 0:00:43.5]} 22. Ne5
{[%clk 0:00:21.1]} 22... Rdd8 {[%clk 0:00:25.8]} 23. Be3 {[%clk 0:00:19.6]}
23... Rc8 {[%clk 0:00:21.8]} 24. Qa5 {[%clk 0:00:10.7]} 24... Bxc4 {[%clk
0:00:15.2]} 25. Nxc4 {[%clk 0:00:08.9]} 25... Rxc4 {[%clk 0:00:11.8]} 26. Qxa7
{[%clk 0:00:09.1]} 26... Bxb2 {[%clk 0:00:10.3]} 27. Rab1 {[%clk 0:00:09.6]}
27... Bc3 {[%clk 0:00:10]} 28. Rec1 {[%clk 0:00:09.4]} 28... Rfc8 {[%clk
0:00:08.6]} 29. Qa6 {[%clk 0:00:06.6]} 29... R4c6 {[%clk 0:00:05.7]} 30. Qb5
{[%clk 0:00:05.1]} 30... Qf6 {[%clk 0:00:03.4]} 31. a4 {[%clk 0:00:04.6]} 31...
Be5 {[%clk 0:00:03.6]} 32. Rxc6 {[%clk 0:00:03.7]} 32... Rxc6 {[%clk 0:00:04.5]}
33. a5 {[%clk 0:00:03]} 33... Kg7 {[%clk 0:00:04.9]} 34. Qb3 {[%clk 0:00:03]}
34... Bd4 {[%clk 0:00:04.1]} 35. Bxd4 {[%clk 0:00:02.5]} 35... Qxd4 {[%clk
0:00:05]} 36. Qa2 {[%clk 0:00:02.2]} 36... Ra6 {[%clk 0:00:04.7]} 37. Qa1 {[%clk
0:00:02.2]} 37... Qxa1 {[%clk 0:00:04.1]} 38. Rxa1 {[%clk 0:00:03.1]} 38... Kf6
{[%clk 0:00:04]} 39. g4 {[%clk 0:00:03.7]} 39... Ke5 {[%clk 0:00:04.9]} 40. Kg2
{[%clk 0:00:04.3]} 40... Kd5 {[%clk 0:00:05.8]} 41. Kg3 {[%clk 0:00:04.9]} 41...
Kc5 {[%clk 0:00:06.7]} 42. Kf4 {[%clk 0:00:04.9]} 42... f6 {[%clk 0:00:07.6]}
43. h4 {[%clk 0:00:01.9]} 43... Kc6 {[%clk 0:00:08.5]} 44. g5 {[%clk 0:00:02.3]}
44... Kb7 {[%clk 0:00:09.4]} 45. gxf6 {[%clk 0:00:02.2]} 45... Rd6 {[%clk
0:00:10.3]} 46. Kg5 {[%clk 0:00:02.2]} 46... Rxf6 {[%clk 0:00:11.2]} 47. Kxf6
{[%clk 0:00:02.6]} 47... Ka6 {[%clk 0:00:10.6]} 48. Kg7 {[%clk 0:00:03.5]} 1-0

[Event "Early-Titled-Tuesday-Blitz-September-26-2023"]
[Site "Chess.com"]
[Date "2023.09.26"]
[Round "5"]
[White "TimofeevAr"]
[Black "Aariow"]
[Result "1-0"]
[WhiteElo "2877"]
[BlackElo "2625"]
[TimeControl "180+1"]
[EndTime "8:58:47 PDT"]
[Termination "TimofeevAr won by resignation"]

1. c4 {[%clk 0:03:00.9]} 1... e6 {[%clk 0:02:51.4]} 2. Nf3 {[%clk 0:02:57.2]}
2... d5 {[%clk 0:02:51.4]} 3. e3 {[%clk 0:02:57.3]} 3... Nf6 {[%clk 0:02:51.4]}
4. b3 {[%clk 0:02:56.9]} 4... Be7 {[%clk 0:02:50.3]} 5. Bb2 {[%clk 0:02:56.8]}
5... O-O {[%clk 0:02:51]} 6. d4 {[%clk 0:02:56.6]} 6... b6 {[%clk 0:02:51.7]} 7.
Bd3 {[%clk 0:02:56.1]} 7... Bb7 {[%clk 0:02:52.2]} 8. O-O {[%clk 0:02:55.8]}
8... c5 {[%clk 0:02:51.3]} 9. dxc5 {[%clk 0:02:50.9]} 9... bxc5 {[%clk
0:02:52.2]} 10. Qe2 {[%clk 0:02:49.9]} 10... Nc6 {[%clk 0:02:51.7]} 11. cxd5
{[%clk 0:02:47.7]} 11... exd5 {[%clk 0:02:51.9]} 12. Rd1 {[%clk 0:02:46]} 12...
Qc8 {[%clk 0:02:29.9]} 13. Nc3 {[%clk 0:02:39.7]} 13... d4 {[%clk 0:02:20.4]}
14. Ne4 {[%clk 0:02:26.1]} 14... Nxe4 {[%clk 0:01:58.7]} 15. Bxe4 {[%clk
0:02:25.8]} 15... dxe3 {[%clk 0:01:59.3]} 16. Qxe3 {[%clk 0:02:24.8]} 16... Qe6
{[%clk 0:02:00.1]} 17. Re1 {[%clk 0:02:12.9]} 17... Rfe8 {[%clk 0:01:42]} 18.
Qf4 {[%clk 0:02:04.4]} 18... Qh6 {[%clk 0:00:54.4]} 19. Qxh6 {[%clk 0:01:58.7]}
19... gxh6 {[%clk 0:00:55.3]} 20. Rad1 {[%clk 0:01:55.5]} 20... Bf8 {[%clk
0:00:36.5]} 21. Ne5 {[%clk 0:01:48.3]} 21... Na5 {[%clk 0:00:26.7]} 22. Nd7
{[%clk 0:01:34.3]} 22... Bg7 {[%clk 0:00:08.7]} 23. Bxg7 {[%clk 0:01:33.3]}
23... Kxg7 {[%clk 0:00:09.6]} 24. Nxc5 {[%clk 0:01:33]} 24... Bxe4 {[%clk
0:00:09.4]} 25. Nxe4 {[%clk 0:01:33]} 25... Nc6 {[%clk 0:00:04.4]} 26. Kf1
{[%clk 0:01:27.6]} 26... Nb4 {[%clk 0:00:04.5]} 27. Rd2 {[%clk 0:01:25.4]} 27...
Re6 {[%clk 0:00:03.7]} 28. a3 {[%clk 0:01:23.5]} 28... Na6 {[%clk 0:00:02.9]}
29. b4 {[%clk 0:01:19.6]} 29... Rae8 {[%clk 0:00:02.1]} 30. Rde2 {[%clk
0:01:19.9]} 30... Nc7 {[%clk 0:00:01.6]} 31. Nc3 {[%clk 0:01:18.3]} 31... Rxe2
{[%clk 0:00:02.4]} 32. Rxe2 {[%clk 0:01:18.4]} 32... Rd8 {[%clk 0:00:03.3]} 33.
Re3 {[%clk 0:01:13.2]} 33... Ne6 {[%clk 0:00:03.2]} 34. g3 {[%clk 0:01:10]}
34... Rc8 {[%clk 0:00:03.6]} 35. Ke2 {[%clk 0:01:08.9]} 35... Nd4+ {[%clk
0:00:03.6]} 36. Kd3 {[%clk 0:01:07.3]} 36... Ne6 {[%clk 0:00:04.1]} 37. Re1
{[%clk 0:01:02.9]} 37... Rd8+ {[%clk 0:00:03.7]} 38. Kc4 {[%clk 0:01:02.9]}
38... Rc8+ {[%clk 0:00:04.3]} 39. Kd3 {[%clk 0:01:03.2]} 39... Rd8+ {[%clk
0:00:04.8]} 40. Ke3 {[%clk 0:00:59.2]} 40... Rc8 {[%clk 0:00:04.6]} 41. Nd5
{[%clk 0:00:56.8]} 41... Rc4 {[%clk 0:00:03]} 42. Rd1 {[%clk 0:00:55.5]} 42...
a5 {[%clk 0:00:02.4]} 43. b5 {[%clk 0:00:47.4]} 43... Rc5 {[%clk 0:00:01.9]} 44.
a4 {[%clk 0:00:32.7]} 44... Rc4 {[%clk 0:00:02.3]} 45. Nb6 {[%clk 0:00:33]}
45... Rb4 {[%clk 0:00:02.5]} 46. Rd5 {[%clk 0:00:29.5]} 46... Kf6 {[%clk
0:00:02.5]} 47. f4 {[%clk 0:00:21.9]} 47... Rb3+ {[%clk 0:00:03]} 48. Rd3 {[%clk
0:00:20.6]} 48... Rb4 {[%clk 0:00:03.7]} 49. Nd5+ {[%clk 0:00:20.3]} 1-0

[Event "Early-Titled-Tuesday-Blitz-September-26-2023"]
[Site "Chess.com"]
[Date "2023.09.26"]
[Round "5"]
[White "Fleetw00dMac"]
[Black "Ermito2020"]
[Result "1-0"]
[WhiteElo "2495"]
[BlackElo "2638"]
[TimeControl "180+1"]
[EndTime "8:58:49 PDT"]
[Termination "Fleetw00dMac won on time"]

1. d4 {[%clk 0:03:00.9]} 1... Nf6 {[%clk 0:02:59.4]} 2. c4 {[%clk 0:03:00.6]}
2... g6 {[%clk 0:02:59.9]} 3. Nc3 {[%clk 0:03:00.2]} 3... Bg7 {[%clk 0:03:00.2]}
4. e4 {[%clk 0:02:59.8]} 4... d6 {[%clk 0:03:00.7]} 5. Nf3 {[%clk 0:03:00]} 5...
O-O {[%clk 0:03:00.6]} 6. Be2 {[%clk 0:03:00.1]} 6... Bg4 {[%clk 0:02:55.9]} 7.
Be3 {[%clk 0:02:59.3]} 7... Nc6 {[%clk 0:02:54.2]} 8. d5 {[%clk 0:02:57.3]} 8...
Bxf3 {[%clk 0:02:53.9]} 9. Bxf3 {[%clk 0:02:56.8]} 9... Ne5 {[%clk 0:02:53.3]}
10. Be2 {[%clk 0:02:56.8]} 10... c6 {[%clk 0:02:53]} 11. O-O {[%clk 0:02:53.9]}
11... cxd5 {[%clk 0:02:52.7]} 12. cxd5 {[%clk 0:02:52.4]} 12... a6 {[%clk
0:02:53.1]} 13. f4 {[%clk 0:02:45]} 13... Ned7 {[%clk 0:02:52.4]} 14. Rc1 {[%clk
0:02:44.6]} 14... Rc8 {[%clk 0:02:48.6]} 15. Qd2 {[%clk 0:02:28.8]} 15... b5
{[%clk 0:02:43.8]} 16. Bf3 {[%clk 0:02:00.7]} 16... Nc5 {[%clk 0:02:20.5]} 17.
b4 {[%clk 0:01:54.3]} 17... Ncd7 {[%clk 0:02:19.9]} 18. a4 {[%clk 0:01:52.6]}
18... Nb6 {[%clk 0:02:14]} 19. axb5 {[%clk 0:01:49.5]} 19... Nc4 {[%clk
0:02:13.3]} 20. Qe2 {[%clk 0:01:44.6]} 20... Nxe3 {[%clk 0:02:13.6]} 21. Qxe3
{[%clk 0:01:44.5]} 21... axb5 {[%clk 0:02:14.3]} 22. Nxb5 {[%clk 0:01:42.2]}
22... Rb8 {[%clk 0:02:14.2]} 23. Na7 {[%clk 0:01:41.2]} 23... Qd7 {[%clk
0:01:20.6]} 24. Nc6 {[%clk 0:01:39.9]} 24... Ra8 {[%clk 0:01:20.7]} 25. e5
{[%clk 0:01:37.8]} 25... Ng4 {[%clk 0:00:57.6]} 26. Qe2 {[%clk 0:01:36.3]} 26...
Nh6 {[%clk 0:00:52.2]} 27. g4 {[%clk 0:01:19.8]} 27... Kh8 {[%clk 0:00:47.9]}
28. h3 {[%clk 0:01:18.8]} 28... Ra3 {[%clk 0:00:46.3]} 29. Kg2 {[%clk 0:01:12]}
29... Qb7 {[%clk 0:00:45.5]} 30. Rf2 {[%clk 0:01:10.1]} 30... Rfa8 {[%clk
0:00:43.4]} 31. Be4 {[%clk 0:01:04.1]} 31... Rb3 {[%clk 0:00:37.4]} 32. g5
{[%clk 0:00:55.3]} 32... Nf5 {[%clk 0:00:34.1]} 33. Bxf5 {[%clk 0:00:55.1]}
33... gxf5 {[%clk 0:00:35]} 34. exd6 {[%clk 0:00:52.8]} 34... exd6 {[%clk
0:00:34]} 35. Qe7 {[%clk 0:00:52.4]} 35... Rxb4 {[%clk 0:00:28.4]} 36. Qxb7
{[%clk 0:00:47.9]} 36... Rxb7 {[%clk 0:00:29.3]} 37. Re2 {[%clk 0:00:47.6]}
37... h6 {[%clk 0:00:27.9]} 38. h4 {[%clk 0:00:47]} 38... Kh7 {[%clk 0:00:27.3]}
39. Ne7 {[%clk 0:00:44.1]} 39... Re8 {[%clk 0:00:23.9]} 40. Rce1 {[%clk
0:00:43.3]} 40... Bc3 {[%clk 0:00:24.5]} 41. Nxf5 {[%clk 0:00:43.4]} 41... Rxe2+
{[%clk 0:00:13.4]} 42. Rxe2 {[%clk 0:00:43.2]} 42... hxg5 {[%clk 0:00:13.3]} 43.
hxg5 {[%clk 0:00:43.4]} 43... Bb4 {[%clk 0:00:13.1]} 44. Kf3 {[%clk 0:00:41.8]}
44... Ra7 {[%clk 0:00:12.5]} 45. Kg4 {[%clk 0:00:41.7]} 45... Ra1 {[%clk
0:00:11.1]} 46. Rh2+ {[%clk 0:00:41.5]} 46... Kg8 {[%clk 0:00:10.6]} 47. Rb2
{[%clk 0:00:37.5]} 47... Bc5 {[%clk 0:00:10]} 48. Rb8+ {[%clk 0:00:36.8]} 48...
Kh7 {[%clk 0:00:10.7]} 49. Nh6 {[%clk 0:00:36.4]} 49... Ra4 {[%clk 0:00:08.4]}
50. Rf8 {[%clk 0:00:31.6]} 50... Be3 {[%clk 0:00:02.2]} 51. Rxf7+ {[%clk
0:00:31.6]} 51... Kh8 {[%clk 0:00:03.1]} 52. g6 {[%clk 0:00:27.7]} 1-0

[Event "Early-Titled-Tuesday-Blitz-September-26-2023"]
[Site "Chess.com"]
[Date "2023.09.26"]
[Round "5"]
[White "Emp3rador"]
[Black "Dewarfd"]
[Result "1-0"]
[WhiteElo "2527"]
[BlackElo "2144"]
[TimeControl "180+1"]
[EndTime "8:58:53 PDT"]
[Termination "Emp3rador won on time"]

1. e4 {[%clk 0:02:50.9]} 1... e5 {[%clk 0:02:56.8]} 2. Nf3 {[%clk 0:02:47.2]}
2... Nc6 {[%clk 0:02:56.4]} 3. d4 {[%clk 0:02:47]} 3... exd4 {[%clk 0:02:56.3]}
4. Nxd4 {[%clk 0:02:47.7]} 4... Nf6 {[%clk 0:02:56]} 5. Nc3 {[%clk 0:02:46.2]}
5... Bb4 {[%clk 0:02:55.1]} 6. Nxc6 {[%clk 0:02:41.6]} 6... bxc6 {[%clk
0:02:55.7]} 7. Bd3 {[%clk 0:02:41.4]} 7... O-O {[%clk 0:02:54.7]} 8. O-O {[%clk
0:02:41.2]} 8... d5 {[%clk 0:02:54.5]} 9. exd5 {[%clk 0:02:41.8]} 9... cxd5
{[%clk 0:02:54.2]} 10. Bg5 {[%clk 0:02:41.7]} 10... Bb7 {[%clk 0:02:44.8]} 11.
Bxf6 {[%clk 0:02:13.8]} 11... Qxf6 {[%clk 0:02:43.2]} 12. Qh5 {[%clk 0:02:01.4]}
12... g6 {[%clk 0:02:37.3]} 13. Nxd5 {[%clk 0:01:36.9]} 13... Qd6 {[%clk
0:02:01.7]} 14. Qg4 {[%clk 0:00:49.5]} 14... Qxd5 {[%clk 0:01:55.7]} 15. f3
{[%clk 0:00:44]} 15... Bc5+ {[%clk 0:01:48.7]} 16. Kh1 {[%clk 0:00:43.6]} 16...
Bc8 {[%clk 0:01:42.3]} 17. Qa4 {[%clk 0:00:27.9]} 17... Qd4 {[%clk 0:01:34.4]}
18. Qxd4 {[%clk 0:00:18.2]} 18... Bxd4 {[%clk 0:01:33.9]} 19. c3 {[%clk
0:00:19.1]} 19... Bg7 {[%clk 0:01:32.4]} 20. Rab1 {[%clk 0:00:18.5]} 20... Rb8
{[%clk 0:01:31.5]} 21. Be4 {[%clk 0:00:17.4]} 21... Bb7 {[%clk 0:01:29.6]} 22.
Bxb7 {[%clk 0:00:16.7]} 22... Rxb7 {[%clk 0:01:29.3]} 23. Rfc1 {[%clk
0:00:13.9]} 23... Rfb8 {[%clk 0:01:28.6]} 24. Rc2 {[%clk 0:00:14.2]} 24... c5
{[%clk 0:01:25.8]} 25. g3 {[%clk 0:00:14.5]} 25... c4 {[%clk 0:01:25.5]} 26. Kg2
{[%clk 0:00:15]} 26... Rd7 {[%clk 0:01:24.4]} 27. f4 {[%clk 0:00:14.7]} 27...
Rbd8 {[%clk 0:01:24]} 28. Re1 {[%clk 0:00:13.8]} 28... Rd2+ {[%clk 0:01:22.4]}
29. Re2 {[%clk 0:00:14.2]} 29... Rxc2 {[%clk 0:01:22.1]} 30. Rxc2 {[%clk
0:00:15.1]} 30... Bf8 {[%clk 0:01:21.8]} 31. Kf3 {[%clk 0:00:15.6]} 31... Bc5
{[%clk 0:01:21]} 32. Ke4 {[%clk 0:00:15.9]} 32... Rd1 {[%clk 0:01:18.3]} 33. b3
{[%clk 0:00:15.2]} 33... cxb3 {[%clk 0:01:14.2]} 34. axb3 {[%clk 0:00:15.5]}
34... a5 {[%clk 0:01:13.9]} 35. Ra2 {[%clk 0:00:15.5]} 35... Bb6 {[%clk
0:01:13]} 36. c4 {[%clk 0:00:11.1]} 36... Kg7 {[%clk 0:01:07.4]} 37. Rc2 {[%clk
0:00:10.4]} 37... Bc5 {[%clk 0:01:02.8]} 38. Ra2 {[%clk 0:00:10.5]} 38... Bb4
{[%clk 0:01:02]} 39. Rc2 {[%clk 0:00:11.2]} 39... Rd6 {[%clk 0:00:57.5]} 40. c5
{[%clk 0:00:11.2]} 40... Rc6 {[%clk 0:00:56.1]} 41. Kd5 {[%clk 0:00:11.6]} 41...
Rc8 {[%clk 0:00:54.8]} 42. c6 {[%clk 0:00:11.1]} 42... Kf6 {[%clk 0:00:53.9]}
43. c7 {[%clk 0:00:11.5]} 43... Ke7 {[%clk 0:00:52.1]} 44. Kc6 {[%clk
0:00:11.9]} 44... f5 {[%clk 0:00:12]} 45. Re2+ {[%clk 0:00:10.5]} 45... Kf6
{[%clk 0:00:10.8]} 46. Kd7 {[%clk 0:00:11.1]} 46... Rxc7+ {[%clk 0:00:09.2]} 47.
Kxc7 {[%clk 0:00:11.2]} 47... g5 {[%clk 0:00:09.8]} 48. fxg5+ {[%clk 0:00:10.2]}
48... Kxg5 {[%clk 0:00:09.8]} 49. Kd7 {[%clk 0:00:09.3]} 49... h5 {[%clk
0:00:08.8]} 50. Ke6 {[%clk 0:00:09]} 50... f4 {[%clk 0:00:08]} 51. Re4 {[%clk
0:00:08.6]} 51... f3 {[%clk 0:00:04.9]} 52. Rf4 {[%clk 0:00:08.7]} 1-0

[Event "Early-Titled-Tuesday-Blitz-September-26-2023"]
[Site "Chess.com"]
[Date "2023.09.26"]
[Round "5"]
[White "Mystery2007"]
[Black "Kopytkin"]
[Result "0-1"]
[WhiteElo "2485"]
[BlackElo "2367"]
[TimeControl "180+1"]
[EndTime "8:59:01 PDT"]
[Termination "Kopytkin won on time"]

1. e4 {[%clk 0:02:57.2]} 1... Nf6 {[%clk 0:02:52.9]} 2. e5 {[%clk 0:02:57]} 2...
Nd5 {[%clk 0:02:52.5]} 3. c4 {[%clk 0:02:57.4]} 3... Nb6 {[%clk 0:02:52]} 4. d4
{[%clk 0:02:58.1]} 4... d6 {[%clk 0:02:52.1]} 5. exd6 {[%clk 0:02:58.8]} 5...
cxd6 {[%clk 0:02:52.7]} 6. a4 {[%clk 0:02:58.6]} 6... g6 {[%clk 0:02:51.5]} 7.
a5 {[%clk 0:02:58.3]} 7... N6d7 {[%clk 0:02:51.8]} 8. Nf3 {[%clk 0:02:58.8]}
8... Bg7 {[%clk 0:02:52.1]} 9. Be2 {[%clk 0:02:59.4]} 9... O-O {[%clk
0:02:51.9]} 10. O-O {[%clk 0:03:00]} 10... Nc6 {[%clk 0:02:52.3]} 11. d5 {[%clk
0:02:59.1]} 11... Nxa5 {[%clk 0:02:25.1]} 12. Ra2 {[%clk 0:02:55.8]} 12... b6
{[%clk 0:01:49.1]} 13. b4 {[%clk 0:02:52.9]} 13... Nb7 {[%clk 0:01:48.9]} 14.
Na3 {[%clk 0:02:50.8]} 14... e5 {[%clk 0:01:40.1]} 15. dxe6 {[%clk 0:02:41.4]}
15... fxe6 {[%clk 0:01:41]} 16. Nb5 {[%clk 0:02:36.9]} 16... Qe7 {[%clk
0:01:35.4]} 17. Bg5 {[%clk 0:02:31.2]} 17... Nf6 {[%clk 0:01:30.9]} 18. Nxa7
{[%clk 0:02:08.5]} 18... Bd7 {[%clk 0:01:26.9]} 19. Nd4 {[%clk 0:01:54.4]} 19...
e5 {[%clk 0:01:22.4]} 20. Ndc6 {[%clk 0:01:41.2]} 20... Qf7 {[%clk 0:01:15.4]}
21. Bxf6 {[%clk 0:01:27.9]} 21... Bxf6 {[%clk 0:01:12.7]} 22. Bf3 {[%clk
0:01:26.5]} 22... Be6 {[%clk 0:01:07.6]} 23. Bd5 {[%clk 0:01:18.2]} 23... Bxd5
{[%clk 0:00:51.1]} 24. cxd5 {[%clk 0:01:10.1]} 24... Nd8 {[%clk 0:00:47.4]} 25.
Qd2 {[%clk 0:00:47.7]} 25... Nxc6 {[%clk 0:00:41.5]} 26. Nxc6 {[%clk 0:00:48.6]}
26... e4 {[%clk 0:00:30.6]} 27. h3 {[%clk 0:00:31.7]} 27... Rfc8 {[%clk
0:00:29.9]} 28. Rd1 {[%clk 0:00:25]} 28... Kg7 {[%clk 0:00:21.7]} 29. Rxa8
{[%clk 0:00:19.5]} 29... Rxa8 {[%clk 0:00:22.6]} 30. Qe2 {[%clk 0:00:18.7]}
30... Re8 {[%clk 0:00:19.8]} 31. Qb5 {[%clk 0:00:14.8]} 31... e3 {[%clk
0:00:16.3]} 32. fxe3 {[%clk 0:00:14.9]} 32... Bg5 {[%clk 0:00:16.7]} 33. Rf1
{[%clk 0:00:11]} 33... Bxe3+ {[%clk 0:00:15.4]} 34. Kh1 {[%clk 0:00:11.6]} 34...
Qd7 {[%clk 0:00:07.9]} 35. Qd3 {[%clk 0:00:10.1]} 35... h5 {[%clk 0:00:04.1]}
36. Rf3 {[%clk 0:00:05.8]} 36... Bg5 {[%clk 0:00:04.1]} 37. Rf1 {[%clk
0:00:04.9]} 37... Kh6 {[%clk 0:00:03.1]} 38. Qf3 {[%clk 0:00:04.5]} 38... Re7
{[%clk 0:00:02.4]} 39. Qf8+ {[%clk 0:00:04.3]} 39... Rg7 {[%clk 0:00:02]} 40.
Qf3 {[%clk 0:00:02.2]} 40... Bh4 {[%clk 0:00:01.9]} 41. Nd4 {[%clk 0:00:02.4]}
41... Bg5 {[%clk 0:00:02]} 42. Ne6 {[%clk 0:00:02.9]} 42... Bf6 {[%clk 0:00:02]}
43. Nxg7 {[%clk 0:00:03]} 43... Bxg7 {[%clk 0:00:02.3]} 44. Qf4+ {[%clk
0:00:03.5]} 44... Kh7 {[%clk 0:00:03.2]} 45. Qf7 {[%clk 0:00:03.7]} 45... Qb5
{[%clk 0:00:03.1]} 46. Rf6 {[%clk 0:00:03.7]} 46... Qd3 {[%clk 0:00:02.2]} 47.
Rf1 {[%clk 0:00:03]} 47... Qd4 {[%clk 0:00:01.8]} 48. Qf3 {[%clk 0:00:03.1]}
48... Qe5 {[%clk 0:00:01.7]} 49. Rc1 {[%clk 0:00:02.6]} 49... Qd4 {[%clk
0:00:01.4]} 50. Rc7 {[%clk 0:00:01.9]} 50... Qe5 {[%clk 0:00:01.2]} 0-1

[Event "Early-Titled-Tuesday-Blitz-September-26-2023"]
[Site "Chess.com"]
[Date "2023.09.26"]
[Round "5"]
[White "KerryStead"]
[Black "Defenstrator"]
[Result "0-1"]
[WhiteElo "2091"]
[BlackElo "2360"]
[TimeControl "180+1"]
[EndTime "8:59:09 PDT"]
[Termination "Defenstrator won on time"]

1. d4 {[%clk 0:03:00.9]} 1... d5 {[%clk 0:02:58.5]} 2. e4 {[%clk 0:03:00.9]}
2... dxe4 {[%clk 0:02:58.6]} 3. Nc3 {[%clk 0:03:00.6]} 3... c6 {[%clk
0:02:54.7]} 4. f3 {[%clk 0:02:58.7]} 4... e5 {[%clk 0:02:47.2]} 5. dxe5 {[%clk
0:02:54.5]} 5... Qxd1+ {[%clk 0:02:44.8]} 6. Kxd1 {[%clk 0:02:55.4]} 6... exf3
{[%clk 0:02:36.9]} 7. Nxf3 {[%clk 0:02:56.3]} 7... Bg4 {[%clk 0:02:37.3]} 8. Be2
{[%clk 0:02:48.8]} 8... Nd7 {[%clk 0:02:33.2]} 9. Bf4 {[%clk 0:02:48.8]} 9...
Ne7 {[%clk 0:02:29.9]} 10. h3 {[%clk 0:02:45]} 10... Bxf3 {[%clk 0:02:22.3]} 11.
Bxf3 {[%clk 0:02:42.7]} 11... Ng6 {[%clk 0:02:23.2]} 12. Bg3 {[%clk 0:02:40.9]}
12... O-O-O {[%clk 0:02:20]} 13. Bg4 {[%clk 0:02:30.5]} 13... Bb4 {[%clk
0:02:04]} 14. Re1 {[%clk 0:02:13.5]} 14... Bxc3 {[%clk 0:01:55.8]} 15. bxc3
{[%clk 0:02:12.9]} 15... Rhe8 {[%clk 0:01:50.9]} 16. Kc1 {[%clk 0:02:10.9]}
16... b6 {[%clk 0:01:42.6]} 17. Kb2 {[%clk 0:02:09.6]} 17... Kb7 {[%clk
0:01:42.6]} 18. e6 {[%clk 0:02:03.6]} 18... fxe6 {[%clk 0:01:41.6]} 19. Rxe6
{[%clk 0:02:01.7]} 19... Rxe6 {[%clk 0:01:39.6]} 20. Bxe6 {[%clk 0:02:02.6]}
20... Nc5 {[%clk 0:01:40.4]} 21. Bf5 {[%clk 0:01:56.4]} 21... Rd2 {[%clk
0:01:39.4]} 22. Rg1 {[%clk 0:01:49.6]} 22... Na4+ {[%clk 0:01:14.9]} 23. Kb3
{[%clk 0:01:48.8]} 23... b5 {[%clk 0:01:12.6]} 24. c4 {[%clk 0:01:46.9]} 24...
Rd4 {[%clk 0:00:59.4]} 25. cxb5 {[%clk 0:01:39.4]} 25... cxb5 {[%clk 0:01:00]}
26. Re1 {[%clk 0:01:02.7]} 26... a5 {[%clk 0:01:00.1]} 27. a3 {[%clk 0:00:57.4]}
27... Rd2 {[%clk 0:00:53.3]} 28. Bxg6 {[%clk 0:00:44.2]} 28... hxg6 {[%clk
0:00:51.6]} 29. Re7+ {[%clk 0:00:44]} 29... Kc6 {[%clk 0:00:44]} 30. Rc7+ {[%clk
0:00:37.1]} 30... Kb6 {[%clk 0:00:43.3]} 31. Rxg7 {[%clk 0:00:36.8]} 31... Rxg2
{[%clk 0:00:37.8]} 32. Rxg6+ {[%clk 0:00:36.6]} 32... Kb7 {[%clk 0:00:35.4]} 33.
Rg7+ {[%clk 0:00:36.1]} 33... Kc6 {[%clk 0:00:35.6]} 34. Be5 {[%clk 0:00:33.3]}
34... Re2 {[%clk 0:00:33.3]} 35. Bf6 {[%clk 0:00:16.3]} 35... Nc5+ {[%clk
0:00:31.8]} 36. Kb2 {[%clk 0:00:13.5]} 36... Na4+ {[%clk 0:00:24.6]} 37. Kb3
{[%clk 0:00:11.9]} 37... Re3+ {[%clk 0:00:22.8]} 38. c3 {[%clk 0:00:10.6]} 38...
Rxh3 {[%clk 0:00:20.3]} 39. Bd4 {[%clk 0:00:09]} 39... Rh1 {[%clk 0:00:15.2]}
40. Kc2 {[%clk 0:00:08.1]} 40... Rh2+ {[%clk 0:00:14.2]} 41. Kd3 {[%clk
0:00:07.8]} 41... Nb2+ {[%clk 0:00:13.6]} 42. Ke4 {[%clk 0:00:07.6]} 42... Nc4
{[%clk 0:00:13.8]} 43. Rg6+ {[%clk 0:00:06.9]} 43... Kb7 {[%clk 0:00:14]} 44.
Kd5 {[%clk 0:00:06.5]} 44... Rh5+ {[%clk 0:00:12.9]} 45. Ke4 {[%clk 0:00:06.6]}
45... Nxa3 {[%clk 0:00:10.1]} 46. Kd3 {[%clk 0:00:05]} 46... Nc4 {[%clk
0:00:09.5]} 47. Ke4 {[%clk 0:00:02.7]} 47... a4 {[%clk 0:00:09.8]} 48. Kd3
{[%clk 0:00:01.9]} 48... a3 {[%clk 0:00:09.9]} 49. Kc2 {[%clk 0:00:02.1]} 49...
Rh2+ {[%clk 0:00:09.3]} 0-1